[Event "86th Tata Steel Tienkamp 2024"]
[Site "Wijk aan Zee"]
[Date "2024.01.19"]
[Round "1.1"]
[White "Pastar, Slaven"]
[Black "Bekker, Stefan"]
[Result "1-0"]
[ECO "B51"]
[WhiteElo "2343"]
[BlackElo "2274"]
[Annotator "RC"]
[PlyCount "101"]
[EventDate "2024.01.02"]
[EventType "tourn"]
[EventCountry "NED"]
[SourceTitle "playchess.com"]
[Source "ChessBase"]
[SourceQuality "1"]
[TimeControl "40/6000+30:20/3000+30:900+30"]

1. e4 {[%emt 0:10:13]} c5 {[%emt 0:10:10]} 2. Nf3 {[%emt 0:00:38]} d6 {[%emt 0:00:09]} 3. Bb5+ {[%emt 0:00:41]} Nd7 {[%emt 0:00:14]} 4. d4 {[%emt 0:02:52]} cxd4 {[%emt 0:00:29]} 5. Qxd4 {[%emt 0:00:48]} a6 {[%emt 0:00:56]} 6. Bxd7+ {[%emt 0:00:46]} Bxd7 {[%emt 0:00:07]} 7. c4 {[%emt 0:00:44]} e5 {[%emt 0:16:08]} 8. Qd3 {[%emt 0:00:27]} h6 {[%emt 0:05:14]} 9. Nc3 {[%emt 0:03:31]} Nf6 {[%emt 0:01:02]} 10. O-O {[%emt 0:05:04]} Be7 {[%emt 0:01:18]} 11. Rd1 {[%emt 0:04:46]} O-O {[%emt 0:01:21]} 12. a4 {[%emt 0:11:51]} Bg4 {[%emt 0:11:41]} 13. b3 {[%emt 0:17:17]} Qc8 {[%emt 0:09:11]} 14. h3 {[%emt 0:05:08]} Bh5 {[%emt 0:00:59]} 15. Ba3 {[%emt 0:05:48]} Re8 {[%emt 0:01:04]} 16. Rd2 {[%emt 0:05:13]} Qc6 {[%emt 0:13:56]} 17. Ne1 {[%emt 0:06:40]} Bg6 {[%emt 0:01:07]} 18. Re2 {[%emt 0:03:10]} Nh5 {[%emt 0:02:41]} 19. g3 {[%emt 0:10:20]} Qc8 {[%emt 0:19:51]} 20. Kh2 {[%emt 0:01:05]} f5 {[%emt 0:02:10]} 21. Ng2 {[%emt 0:01:39]} fxe4 {[%emt 0:04:44]} 22. Nxe4 {[%emt 0:00:49]} Qe6 {[%emt 0:01:26]} 23. Ne3 {[%emt 0:04:45]} Nf6 {[%emt 0:01:34]} 24. f3 {[%emt 0:01:07]} Rf8 {[%emt 0:01:04]} 25. Nd5 {[%emt 0:05:22]} Nxd5 {[%emt 0:01:01]} 26. cxd5 {[%emt 0:00:07]} Qd7 {[%emt 0:01:01]} 27. Rc1 {[%emt 0:01:21]} Rf7 {[%emt 0:01:46]} 28. Rc3 {[%emt 0:01:43]} Raf8 {[%emt 0:00:11]} 29. Rf2 {[%emt 0:00:31]} Bd8 {[%emt 0:01:12]} 30. Qe2 {[%emt 0:00:23]} Be7 {[%emt 0:00:58]} 31. Kg2 {[%emt 0:00:21]} Bf5 {[%emt 0:00:15]} 32. h4 {[%emt 0:00:46]} Bg6 {[%emt 0:00:32]} 33. Rf1 {[%emt 0:00:28]} Bh5 {[%emt 0:00:14]} 34. Nd2 {[%emt 0:00:28]} Rf6 {[%emt 0:00:21]} 35. g4 {[%emt 0:00:29]} Bg6 {[%emt 0:01:02]} 36. h5 {[%emt 0:00:13]} Bh7 {[%emt 0:00:09]} 37. Bc1 {[%emt 0:00:54]} Rf4 {[%emt 0:00:28]} 38. Nc4 {[%emt 0:00:27]} Rxf3 {[%emt 0:00:38]} 39. Rfxf3 {[%emt 0:00:21]} Qxg4+ {[%emt 0:00:07]} 40. Kf1 {[%emt 0:00:36]} Qh3+ {[%emt 0:01:22]} 41. Qg2 {[%emt 0:36:14]} Qxh5 {[%emt 0:21:54]} 42. Rxf8+ {[%emt 0:00:49]} Bxf8 {[%emt 0:00:05]} 43. Qf3 {[%emt 0:02:24]} Qh4 {[%emt 0:00:19]} 44. Nxd6 {[%emt 0:03:18]} Qe7 {[%emt 0:07:31]} 45. Ba3 {[%emt 0:03:12]} e4 {[%emt 0:01:33]} 46. Qf2 {[%emt 0:01:04]} Qd7 {[%emt 0:03:45]} 47. Rc8 {[%emt 0:05:01]} Qh3+ {[%emt 0:00:20]} 48. Ke1 {[%emt 0:00:15]} Qh1+ {[%emt 0:00:31]} 49. Kd2 {[%emt 0:01:21]} e3+ {[%emt 0:00:06]} 50. Kxe3 {[%emt 0:00:33]} Qh3+ {[%emt 0:01:19]} 51. Qf3 {[%emt 0:00:28]} 1-0

[Event "86th Tata Steel Tienkamp 2024"]
[Site "Wijk aan Zee"]
[Date "2024.01.19"]
[Round "1.2"]
[White "De Winter, Arthur"]
[Black "Baselmans, Luuk"]
[Result "1/2-1/2"]
[ECO "C11"]
[WhiteElo "2409"]
[BlackElo "2323"]
[Annotator "RC"]
[PlyCount "69"]
[EventDate "2024.01.02"]
[EventType "tourn"]
[EventCountry "NED"]
[SourceTitle "playchess.com"]
[Source "ChessBase"]
[SourceQuality "1"]
[TimeControl "40/6000+30:20/3000+30:900+30"]

1. e4 {[%emt 0:10:03]} e6 {[%emt 0:10:21]} 2. d4 {[%emt 0:00:05]} d5 {[%emt 0:00:05]} 3. Nc3 {[%emt 0:00:03]} Nf6 {[%emt 0:00:17]} 4. e5 {[%emt 0:00:05]} Nfd7 {[%emt 0:00:16]} 5. f4 {[%emt 0:00:05]} c5 {[%emt 0:00:12]} 6. Nf3 {[%emt 0:00:06]} Nc6 {[%emt 0:00:19]} 7. Be3 {[%emt 0:00:06]} a6 {[%emt 0:01:05]} 8. Ne2 {[%emt 0:00:04]} Be7 {[%emt 0:05:19]} 9. c3 {[%emt 0:02:17]} O-O {[%emt 0:03:59]} 10. h4 {[%emt 0:01:20]} f6 {[%emt 0:04:45]} 11. h5 {[%emt 0:01:58]} b5 {[%emt 0:14:44]} 12. h6 {[%emt 0:21:08]} g6 {[%emt 0:02:07]} 13. g3 {[%emt 0:00:29]} Qb6 {[%emt 0:13:29]} 14. Bh3 {[%emt 0:02:31]} cxd4 {[%emt 0:12:22]} 15. Bxe6+ {[%emt 0:12:55]} Kh8 {[%emt 0:00:32]} 16. Nfxd4 {[%emt 0:00:16]} Nxd4 {[%emt 0:12:36]} 17. Nxd4 {[%emt 0:04:00]} Nxe5 {[%emt 0:02:04]} 18. Bxd5 {[%emt 0:08:01]} Bg4 {[%emt 0:03:53]} 19. Qc2 {[%emt 0:01:17]} Rad8 {[%emt 0:00:53]} 20. Bg2 {[%emt 0:09:30]} Nf7 {[%emt 0:11:30]} 21. Qf2 {[%emt 0:04:45]} Rfe8 {[%emt 0:01:13]} 22. O-O {[%emt 0:02:15]} Bf8 {[%emt 0:00:36]} 23. Rfe1 {[%emt 0:07:58]} Nxh6 {[%emt 0:04:40]} 24. Nf5 {[%emt 0:05:37]} Qb8 {[%emt 0:00:53]} 25. Nxh6 {[%emt 0:03:01]} Bxh6 {[%emt 0:00:07]} 26. Bd4 {[%emt 0:01:16]} Bg7 {[%emt 0:00:17]} 27. b4 {[%emt 0:01:35]} Qc8 {[%emt 0:01:24]} 28. Rxe8+ {[%emt 0:02:31]} Rxe8 {[%emt 0:00:09]} 29. Re1 {[%emt 0:00:05]} h5 {[%emt 0:01:20]} 30. Kh2 {[%emt 0:03:33]} Kh7 {[%emt 0:00:31]} 31. Rxe8 {[%emt 0:03:05]} Qxe8 {[%emt 0:00:06]} 32. Bd5 {[%emt 0:01:04]} Bc8 {[%emt 0:01:33]} 33. Qe3 {[%emt 0:01:59]} Qd7 {[%emt 0:00:33]} 34. Bg2 {[%emt 0:01:13]} Qf7 {[%emt 0:00:25]} 35. a3 {[%emt 0:00:55]} 1/2-1/2

[Event "86th Tata Steel Tienkamp 2024"]
[Site "Wijk aan Zee"]
[Date "2024.01.19"]
[Round "1.3"]
[White "Zwirs, Nico"]
[Black "Niermann, Tristan"]
[Result "0-1"]
[ECO "B66"]
[WhiteElo "2476"]
[BlackElo "2413"]
[Annotator "TA"]
[PlyCount "70"]
[EventDate "2024.01.02"]
[EventType "tourn"]
[EventCountry "NED"]
[SourceTitle "playchess.com"]
[Source "ChessBase"]
[SourceQuality "1"]
[TimeControl "40/6000+30:20/3000+30:900+30"]

{[%evp 21,70,0,55,35,41,14,30,0,36,3,14,19,14,13,59,0,12,3,14,-30,-23,-39,-35,-68,-60,-93,-87,-88,-110,-100,-93,-112,-65,-106,-63,-87,-39,-389,-384,-395,-362,-418,-322,-404,-392,-420,-417,-1120,-1073,-1290,-1124]} 1. e4 {[%emt 0:10:03]} c5 {[%emt 0:10:11]} 2. Nf3 {[%emt 0:00:06]} d6 {[%emt 0:00:05]} 3. d4 {[%emt 0:00:09]} cxd4 {[%emt 0:00:05]} 4. Nxd4 {[%emt 0:00:07]} Nf6 {[%emt 0:00:06]} 5. Nc3 {[%emt 0:00:13]} Nc6 {[%emt 0:00:06]} 6. Bg5 {[%emt 0:01:04]} e6 {[%emt 0:00:07]} 7. Qd2 {[%emt 0:01:03]} a6 {[%emt 0:00:13]} 8. Nxc6 {[%emt 0:00:58]} bxc6 {[%emt 0:00:06]} 9. O-O-O {[%emt 0:00:10]} h6 {[%emt 0:02:54]} 10. Bf4 {[%emt 0:01:40]} d5 {[%emt 0:01:36]} 11. Qe3 {[%emt 0:00:45]} Qa5 {[%emt 0:07:45]} ({Black should try} 11... Bb4 $11) 12. exd5 {[%emt 0:27:02] B66: Sicilian: Richter-Rauzer: 7...a6 8 0-0-0 h6.} cxd5 {[%emt 0:02:51]} 13. Be2 {[%emt 0:00:16]} Bb7 {[%emt 0:13:28] [#]} 14. h4 $146 {[%emt 0:21:55] White has an edge.} ({Predecessor:} 14. Be5 Be7 15. f4 O-O 16. Qg3 Rfc8 17. Kb1 Ne8 18. Rhf1 Bf6 19. f5 d4 20. fxe6 dxc3 21. Rxf6 {1-0 Michalik,P (2519)-Pechac,J (2477) Mitropa Cup 35th 2016 (5.3)}) 14... Rc8 {[%emt 0:04:19][%cal Oc8c3]} 15. Be5 {[%emt 0:01:57]} (15. Qa7 $5 {[%cal Ra7b7]} Bc6 16. Qxa6 (16. Bxa6 $2 Ra8 $19 {[%mdl 64] Skewer}) 16... Qxa6 17. Bxa6 $14) 15... Nd7 {[%emt 0:07:49]} 16. Bd4 {[%emt 0:03:33]} Bc5 {[%emt 0:04:51]} 17. Rh3 {[%emt 0:05:04]} Bxd4 {[%emt 0:14:09]} (17... Qb6 $11) 18. Rxd4 {[%emt 0:02:48]} (18. Qxd4 $14 Kf8 19. Ne4) 18... Qc5 {[%emt 0:01:32]} 19. f4 {[%emt 0:04:42]} (19. Rd2 {is interesting.} Ke7 20. g4 Nf6 21. f4) 19... O-O {[%emt 0:03:03]} (19... Nf6 {keeps more tension.} 20. Rd1 Ke7 21. f5 Rhd8) 20. Rg3 {[%emt 0:01:47]} Rfe8 {[%emt 0:02:11]} 21. a3 {[%emt 0:06:15]} Kh8 {[%emt 0:02:27]} 22. Rb4 {[%emt 0:05:09]} Qc7 {[%emt 0:00:27]} 23. Qd4 {[%emt 0:05:25][%csl Gg3][%cal Rd4g7] [#]} f6 {[%emt 0:00:56]} 24. Qa7 {[%emt 0:05:40][%csl LRa6,LRb7]} Nc5 {[%emt 0:01:47] ...a5 is the strong threat.} 25. Qb6 {[%emt 0:00:02]} Qe7 {[%emt 0:06:11]} 26. Kb1 {[%emt 0:00:49]} f5 {[%emt 0:05:29]} ({Better is} 26... Ba8 $17 {Hoping for ...Rc6.} 27. Nd1 (27. Bxa6 $2 Rc6 $19) 27... Rc6) 27. Rh3 {[%emt 0:02:27]} e5 {[%emt 0:02:02]} 28. Bh5 {[%emt 0:01:54]} Red8 {[%emt 0:00:59]} (28... Rg8 $17 {White must now prevent ...d4.} 29. fxe5 Qxe5) 29. fxe5 $2 {[%emt 0:00:40][%mdl 8192] Loses the game.} (29. Na4 $1 $15 Rc6 30. Qa5) 29... d4 $19 {[%emt 0:01:47][%cal Oe7e5,Bd5d4,Bd4d3][%mdl 32] [#] aiming for ...Qxe5!} 30. Na4 {[%emt 0:01:01] And now Nxc5 would win.} Bxg2 {[%emt 0:03:40]} 31. Rh2 {[%emt 0:00:09] Strongly threatening Nxc5.} Rc6 {[%emt 0:00:46]} (31... Qxe5 32. Rxg2 Rd6 33. Qa5 $18 (33. Qa7 Rd7 $18)) 32. Qa5 {[%emt 0:00:27]} Be4 {[%emt 0:00:39]} 33. Rd2 {[%emt 0:00:34]} d3 {[%emt 0:01:30]} (33... Qxh4 34. Nxc5 Rd5 35. Rb8+ (35. Rbxd4 $2 {loses.} Rcxc5 36. Qb4 Qxh5 $19) 35... Kh7 36. Rb6 Rxb6 37. Qxb6 $11) ({Don't go for} 33... Nxa4 $2 34. Qxa4 Qxe5 35. Rbxd4 Rxd4 36. Qxd4 Bxc2+ 37. Ka2 Qxd4 38. Rxd4 $19) 34. Ka1 {[%emt 0:01:02]} (34. c3 $142 Nxa4 {[%mdl 64] Overworked Piece} 35. Qxa4 Qxe5 36. Bf7) 34... Nxa4 {[%emt 0:00:53]} 35. Rxa4 {[%emt 0:00:19]} Rd5 {[%emt 0:01:20] Weighted Error Value: White=0.67/Black=0.14 (very precise)} 0-1

[Event "86th Tata Steel Tienkamp 2024"]
[Site "Wijk aan Zee"]
[Date "2024.01.19"]
[Round "1.4"]
[White "Holzke, Frank"]
[Black "Abdulla, Murad"]
[Result "1-0"]
[ECO "B51"]
[WhiteElo "2460"]
[BlackElo "2332"]
[Annotator "RC"]
[PlyCount "159"]
[EventDate "2024.01.02"]
[EventType "tourn"]
[EventCountry "NED"]
[SourceTitle "playchess.com"]
[Source "ChessBase"]
[SourceQuality "1"]
[TimeControl "40/6000+30:20/3000+30:900+30"]

1. e4 {[%emt 0:10:10]} c5 {[%emt 0:10:11]} 2. Nf3 {[%emt 0:00:14]} d6 {[%emt 0:00:16]} 3. Bb5+ {[%emt 0:00:14]} Nd7 {[%emt 0:02:54]} 4. O-O {[%emt 0:00:16]} Ngf6 {[%emt 0:00:25]} 5. Re1 {[%emt 0:00:32]} a6 {[%emt 0:04:13]} 6. Bf1 {[%emt 0:00:18]} e5 {[%emt 0:01:07]} 7. c3 {[%emt 0:00:39]} Be7 {[%emt 0:00:35]} 8. d4 {[%emt 0:00:35]} O-O {[%emt 0:00:48]} 9. a4 {[%emt 0:02:06]} Qc7 {[%emt 0:02:44]} 10. Nbd2 {[%emt 0:03:35]} Rb8 {[%emt 0:08:08]} 11. a5 {[%emt 0:02:32]} cxd4 {[%emt 0:08:37]} 12. cxd4 {[%emt 0:00:15]} exd4 {[%emt 0:04:31]} 13. Nxd4 {[%emt 0:03:09]} Re8 {[%emt 0:09:12]} 14. Nc4 {[%emt 0:11:06]} Bf8 {[%emt 0:01:24]} 15. Bf4 {[%emt 0:01:38]} Ne5 {[%emt 0:16:53]} 16. Nb6 {[%emt 0:05:05]} Ng6 {[%emt 0:01:19]} 17. Bg5 {[%emt 0:01:46]} Be7 {[%emt 0:06:08]} 18. Rc1 {[%emt 0:12:27]} Qd8 {[%emt 0:00:03]} 19. Bc4 {[%emt 0:07:26]} h6 {[%emt 0:15:10]} 20. Bd2 {[%emt 0:02:19]} Ne5 {[%emt 0:00:40]} 21. Ba2 {[%emt 0:01:50]} Bg4 {[%emt 0:01:14]} 22. Qb3 {[%emt 0:01:27]} Bh5 {[%emt 0:01:47]} 23. Qg3 {[%emt 0:01:55]} Kh8 {[%emt 0:03:09]} 24. Bb4 {[%emt 0:05:26]} Bg6 {[%emt 0:02:08]} 25. Bb1 {[%emt 0:02:15]} Bf8 {[%emt 0:07:36]} 26. Rcd1 {[%emt 0:08:07]} Ned7 {[%emt 0:01:30]} 27. Nc4 {[%emt 0:02:25]} Nxe4 {[%emt 0:00:41]} 28. Bxe4 {[%emt 0:00:18]} Rxe4 {[%emt 0:00:02]} 29. Rxe4 {[%emt 0:01:32]} Bxe4 {[%emt 0:00:02]} 30. Bxd6 {[%emt 0:00:13]} Bxd6 {[%emt 0:01:19]} 31. Nxd6 {[%emt 0:00:46]} Bg6 {[%emt 0:00:21]} 32. Ne6 {[%emt 0:10:54]} Qf6 {[%emt 0:00:39]} 33. Nf4 {[%emt 0:00:17]} Kh7 {[%emt 0:00:41]} 34. h4 {[%emt 0:01:27]} Ne5 {[%emt 0:00:30]} 35. Rd5 {[%emt 0:02:00]} Nc6 {[%emt 0:00:30]} 36. h5 {[%emt 0:03:18]} Bb1 {[%emt 0:00:02]} 37. Ne2 {[%emt 0:02:33]} Rd8 {[%emt 0:00:58]} 38. Nc3 {[%emt 0:01:18]} Bc2 {[%emt 0:00:09]} 39. Nxb7 {[%emt 0:04:08]} Rxd5 {[%emt 0:00:16]} 40. Nxd5 {[%emt 0:00:08]} Qxb2 {[%emt 0:00:41]} 41. Qc3 {[%emt 0:26:54]} Qb1+ {[%emt 0:27:55]} 42. Kh2 {[%emt 0:01:10]} Qxb7 {[%emt 0:00:38]} 43. Qxc2+ {[%emt 0:00:11]} Kh8 {[%emt 0:00:18]} 44. Qc5 {[%emt 0:02:17]} Qd7 {[%emt 0:07:31]} 45. f4 {[%emt 0:02:35]} Kh7 {[%emt 0:02:19]} 46. Kg3 {[%emt 0:01:57]} Qe6 {[%emt 0:05:12]} 47. Kf2 {[%emt 0:02:33]} Nb8 {[%emt 0:04:35]} 48. Ne7 {[%emt 0:03:00]} Qa2+ {[%emt 0:03:08]} 49. Kg3 {[%emt 0:00:50]} Qb3+ {[%emt 0:00:19]} 50. Kh2 {[%emt 0:00:30]} Qe6 {[%emt 0:02:07]} 51. Qc2+ {[%emt 0:00:59]} g6 {[%emt 0:00:48]} 52. hxg6+ {[%emt 0:01:04]} fxg6 {[%emt 0:00:03]} 53. Nxg6 {[%emt 0:00:39]} Qc6 {[%emt 0:00:54]} 54. Nf8+ {[%emt 0:01:25]} Kg7 {[%emt 0:01:09]} 55. Qb2+ {[%emt 0:00:58]} Qf6 {[%emt 0:00:42]} 56. Qb7+ {[%emt 0:00:41]} Kg8 {[%emt 0:00:23]} 57. Ng6 {[%emt 0:00:26]} Qxg6 {[%emt 0:00:31]} 58. Qxb8+ {[%emt 0:00:08]} Kh7 {[%emt 0:00:33]} 59. Qc7+ {[%emt 0:00:57]} Kg8 {[%emt 0:00:08]} 60. Qb6 {[%emt 0:00:28]} Qh5+ {[%emt 0:01:09]} 61. Kg3 {[%emt 0:15:12]} Qh1 {[%emt 0:15:33]} 62. Qe6+ {[%emt 0:01:08]} Kg7 {[%emt 0:00:28]} 63. f5 {[%emt 0:00:42]} Qf1 {[%emt 0:00:32]} 64. Qg6+ {[%emt 0:00:53]} Kf8 {[%emt 0:00:11]} 65. Qxh6+ {[%emt 0:00:34]} Kf7 {[%emt 0:00:03]} 66. Qe6+ {[%emt 0:00:20]} Kf8 {[%emt 0:00:03]} 67. Qd5 {[%emt 0:00:34]} Qe1+ {[%emt 0:00:13]} 68. Kf3 {[%emt 0:01:24]} Qf1+ {[%emt 0:00:16]} 69. Kg4 {[%emt 0:00:31]} Qe2+ {[%emt 0:00:10]} 70. Kf4 {[%emt 0:00:22]} Qf2+ {[%emt 0:00:14]} 71. Ke5 {[%emt 0:00:36]} Qb2+ {[%emt 0:01:30]} 72. Kd6 {[%emt 0:00:42]} Qb8+ {[%emt 0:00:06]} 73. Kd7 {[%emt 0:00:35]} Qe8+ {[%emt 0:01:39]} 74. Kc7 {[%emt 0:00:19]} Qe7+ {[%emt 0:00:14]} 75. Kb6 {[%emt 0:00:25]} Qe2 {[%emt 0:00:51]} 76. Ka7 {[%emt 0:01:38]} Kg7 {[%emt 0:00:45]} 77. Qb7+ {[%emt 0:01:50]} Kf8 {[%emt 0:00:37]} 78. f6 {[%emt 0:03:28]} Qf2+ {[%emt 0:00:15]} 79. Qb6 {[%emt 0:00:12]} Qxg2 {[%emt 0:00:53]} 80. Qd8+ {[%emt 0:00:26]} 1-0

[Event "86th Tata Steel Tienkamp 2024"]
[Site "Wijk aan Zee"]
[Date "2024.01.19"]
[Round "1.5"]
[White "Pijpers, Arthur"]
[Black "Van Foreest, Machteld"]
[Result "1-0"]
[ECO "B47"]
[WhiteElo "2441"]
[BlackElo "2363"]
[Annotator "RC"]
[PlyCount "65"]
[EventDate "2024.01.02"]
[EventType "tourn"]
[EventCountry "NED"]
[SourceTitle "playchess.com"]
[Source "ChessBase"]
[SourceQuality "1"]
[TimeControl "40/6000+30:20/3000+30:900+30"]

1. e4 {[%emt 0:10:03]} c5 {[%emt 0:10:44]} 2. Nf3 {[%emt 0:00:04]} e6 {[%emt 0:00:25]} 3. d4 {[%emt 0:00:05]} cxd4 {[%emt 0:00:03]} 4. Nxd4 {[%emt 0:00:05]} Nc6 {[%emt 0:00:03]} 5. Nc3 {[%emt 0:00:06]} Qc7 {[%emt 0:01:00]} 6. g3 {[%emt 0:00:19]} a6 {[%emt 0:00:46]} 7. Bg2 {[%emt 0:00:12]} Nf6 {[%emt 0:00:12]} 8. O-O {[%emt 0:00:08]} Nxd4 {[%emt 0:00:17]} 9. Qxd4 {[%emt 0:00:05]} Bc5 {[%emt 0:00:10]} 10. Qd1 {[%emt 0:00:20]} O-O {[%emt 0:13:42]} 11. Bf4 {[%emt 0:02:00]} d6 {[%emt 0:09:57]} 12. Na4 {[%emt 0:00:55]} e5 {[%emt 0:00:38]} 13. Bg5 {[%emt 0:25:16]} Bd4 {[%emt 0:05:03]} 14. Bxf6 {[%emt 0:05:46]} gxf6 {[%emt 0:00:50]} 15. c3 {[%emt 0:02:00]} Ba7 {[%emt 0:00:30]} 16. c4 {[%emt 0:00:13]} Qxc4 {[%emt 0:01:50]} 17. Nc3 {[%emt 0:07:19]} Be6 {[%emt 0:06:41]} 18. Nd5 {[%emt 0:03:48]} Bxd5 {[%emt 0:02:42]} 19. exd5 {[%emt 0:02:05]} Rfc8 {[%emt 0:07:55]} 20. Qh5 {[%emt 0:03:42]} Qd4 {[%emt 0:06:23]} 21. Rad1 {[%emt 0:09:41]} Qxb2 {[%emt 0:00:25]} 22. Be4 {[%emt 0:01:14]} Kf8 {[%emt 0:03:53]} 23. Rb1 {[%emt 0:14:41]} Qc3 {[%emt 0:00:28]} 24. Qh6+ {[%emt 0:00:12]} Ke7 {[%emt 0:06:14]} 25. Rfc1 {[%emt 0:00:55]} Qa5 {[%emt 0:05:32]} 26. Rxb7+ {[%emt 0:03:25]} Ke8 {[%emt 0:00:06]} 27. Rcb1 {[%emt 0:02:19]} Rab8 {[%emt 0:05:46]} 28. Rxa7 {[%emt 0:05:16]} Rxb1+ {[%emt 0:02:44]} 29. Bxb1 {[%emt 0:00:02]} Qe1+ {[%emt 0:05:24]} 30. Kg2 {[%emt 0:00:02]} Rc1 {[%emt 0:00:38]} 31. Ra8+ {[%emt 0:00:30]} Kd7 {[%emt 0:00:12]} 32. Bf5+ {[%emt 0:00:08]} Ke7 {[%emt 0:00:08]} 33. Qf8# {[%emt 0:00:05]} 1-0

[Event "86th Tata Steel Tienkamp 2024"]
[Site "Wijk aan Zee"]
[Date "2024.01.20"]
[Round "2.1"]
[White "Niermann, Tristan"]
[Black "Holzke, Frank"]
[Result "1-0"]
[ECO "C47"]
[WhiteElo "2413"]
[BlackElo "2460"]
[Annotator "RC"]
[PlyCount "111"]
[EventDate "2024.01.02"]
[EventType "tourn"]
[EventCountry "NED"]
[SourceTitle "playchess.com"]
[Source "ChessBase"]
[SourceQuality "1"]
[TimeControl "40/6000+30:20/3000+30:900+30"]

1. e4 {[%emt 0:10:04]} e5 {[%emt 0:10:34]} 2. Nf3 {[%emt 0:00:04]} Nc6 {[%emt 0:00:12]} 3. Nc3 {[%emt 0:00:08]} Nf6 {[%emt 0:00:26]} 4. d4 {[%emt 0:00:04]} exd4 {[%emt 0:00:21]} 5. Nxd4 {[%emt 0:00:04]} Bb4 {[%emt 0:00:28]} 6. Nxc6 {[%emt 0:00:06]} bxc6 {[%emt 0:00:09]} 7. Bd3 {[%emt 0:00:04]} d5 {[%emt 0:00:30]} 8. exd5 {[%emt 0:00:04]} O-O {[%emt 0:00:19]} 9. O-O {[%emt 0:00:04]} cxd5 {[%emt 0:00:10]} 10. h3 {[%emt 0:00:10]} Be6 {[%emt 0:04:35]} 11. Qf3 {[%emt 0:00:15]} Rb8 {[%emt 0:00:31]} 12. Bf4 {[%emt 0:03:03]} Bd6 {[%emt 0:00:43]} 13. b3 {[%emt 0:01:46]} c5 {[%emt 0:01:26]} 14. Rad1 {[%emt 0:05:11]} Bxf4 {[%emt 0:04:16]} 15. Qxf4 {[%emt 0:00:06]} Rb4 {[%emt 0:00:16]} 16. Qd2 {[%emt 0:03:29]} Qb8 {[%emt 0:03:38]} 17. Rfe1 {[%emt 0:10:48]} h6 {[%emt 0:02:17]} 18. Ne2 {[%emt 0:08:58]} Re8 {[%emt 0:12:25]} 19. c3 {[%emt 0:01:06]} Rb6 {[%emt 0:01:13]} 20. Nf4 {[%emt 0:02:25]} Rd6 {[%emt 0:07:35]} 21. Bc2 {[%emt 0:02:17]} Qb6 {[%emt 0:00:53]} 22. Re5 {[%emt 0:07:22]} Nd7 {[%emt 0:14:30]} 23. Rxd5 {[%emt 0:04:04]} Bxd5 {[%emt 0:19:42]} 24. Nxd5 {[%emt 0:00:06]} Qb8 {[%emt 0:00:16]} 25. Ne7+ {[%emt 0:00:26]} Rxe7 {[%emt 0:00:08]} 26. Qxd6 {[%emt 0:00:08]} Re1+ {[%emt 0:00:10]} 27. Kh2 {[%emt 0:00:09]} Rxd1 {[%emt 0:00:11]} 28. Qxb8+ {[%emt 0:00:05]} Nxb8 {[%emt 0:00:06]} 29. Bxd1 {[%emt 0:00:03]} Nd7 {[%emt 0:01:24]} 30. Kg3 {[%emt 0:03:48]} Nf6 {[%emt 0:00:48]} 31. Bf3 {[%emt 0:01:27]} g5 {[%emt 0:00:22]} 32. b4 {[%emt 0:01:10]} cxb4 {[%emt 0:10:02]} 33. cxb4 {[%emt 0:00:06]} Kf8 {[%emt 0:00:07]} 34. a4 {[%emt 0:00:19]} Ke7 {[%emt 0:00:08]} 35. a5 {[%emt 0:00:17]} Kd6 {[%emt 0:00:25]} 36. b5 {[%emt 0:00:12]} Kc7 {[%emt 0:00:24]} 37. h4 {[%emt 0:02:21]} Kb8 {[%emt 0:02:22]} 38. hxg5 {[%emt 0:03:46]} hxg5 {[%emt 0:00:09]} 39. Kh3 {[%emt 0:01:01]} Kc7 {[%emt 0:00:56]} 40. g3 {[%emt 0:02:41]} Kb8 {[%emt 0:05:12]} 41. Bh1 {[%emt 0:53:15]} Kc7 {[%emt 0:51:30]} 42. Bg2 {[%emt 0:01:44]} Kb8 {[%emt 0:00:37]} 43. f4 {[%emt 0:07:32]} gxf4 {[%emt 0:00:43]} 44. gxf4 {[%emt 0:00:03]} Kc7 {[%emt 0:00:00]} 45. Kh4 {[%emt 0:00:00]} Ne8 {[%emt 0:00:00]} 46. Kg5 {[%emt 0:00:00]} Nd6 {[%emt 0:00:00]} 47. Bf1 {[%emt 0:00:00]} Nb7 {[%emt 0:00:00]} 48. Kf6 {[%emt 0:00:00]} Nxa5 {[%emt 0:00:00]} 49. Kxf7 {[%emt 0:00:00]} Nb7 {[%emt 0:00:00]} 50. f5 {[%emt 0:00:00]} Kd7 {[%emt 0:00:00]} 51. f6 {[%emt 0:00:00]} Nd6+ {[%emt 0:00:00]} 52. Kg8 {[%emt 0:00:00]} Ke6 {[%emt 0:07:08]} 53. f7 {[%emt 0:00:00]} Nxf7 {[%emt 0:00:05]} 54. Bc4+ {[%emt 0:00:00]} Kf6 {[%emt 0:00:13]} 55. Bxf7 {[%emt 0:00:00]} Ke5 {[%emt 0:00:07]} 56. Bc4 {[%emt 0:00:00]} 1-0